Cogmind - Beta 13 @@@ ROGUE MODE // 2024.07.10 @ 01:05:15 Player: coinshot Result: Destroyed by G-47 Trooper with Particle Gun Performance ------------- Evolutions (2) 1000 Regions Visited (3) 600 Robots Destroyed (53) 265 Value Destroyed (1375) 1375 Prototype IDs (3) 60 Alien Tech Used (0) 0 Bonus (11) 11 TOTAL SCORE: 3311 Bonus ------- High Alert Combat Kills 11 Cogmind --------- Core Integrity 0/550 Matter 295/300 Energy 24/100 System Corruption 7% Temperature Cool (78) Movement Walking (120) Location -8/Materials Parts ------- > --- POWER (1) -------- (None) > --- PROPULSION (3) --- Carbon-fiber Leg > --- UTILITY (3) ------ Advanced Targeting Computer > --- WEAPON (4) ------- Plasma Cannon > --- INVENTORY (5) ---- Small Storage Unit Plasma Cannon Peak State ------------ > --- POWER ------------ Light Ion Engine > --- PROPULSION ------- Airjet Airjet > --- UTILITY ---------- Advanced Targeting Computer Advanced Targeting Computer Target Analyzer > --- WEAPON ----------- Enhanced Autogun Enhanced Autogun Rocket Launcher Katana > --- INVENTORY -------- Light Ion Engine Small Storage Unit Light Assault Rifle Welding Torch [Rating: 29] Favorites ----------- Power Ion Engine Engine Ion Engine Power Core Light Nuclear Core Propulsion Airjet Leg Carbon-fiber Leg Wheel Wheel Hover Unit Airjet Flight Unit Cesium-ion Thruster Utility Advanced Targeting Computer Device Seismic Detector Storage Compact Battery Processor Advanced Targeting Computer Hackware System Shield Weapon Plasma Cannon Energy Gun Particle Gun Energy Cannon Plasma Cannon Ballistic Gun Enhanced Autogun Launcher Grenade Launcher Special Weapon Welding Torch Slashing Weapon Katana Special Melee Weapon Datajack Build | -11 -10 -9 -8 ------- Run | Yrd Mat Mat Mat Slots Evolved 4 | . . 2 2 Power . | . . . . Propulsion 1 | . . . 1 Utility 1 | . . 1 . Weapon 2 | . . 1 1 Parts Attached 72 | 10 4 29 29 Power 6 | 1 . 2 3 Engine 5 | 1 . 2 2 Core 1 | . . . 1 Reactor . | . . . . Propulsion 13 | 2 . 6 5 Treads . | . . . . Leg 4 | . . 3 1 Wheel 2 | 2 . . . Hover 4 | . . 2 2 Flight 3 | . . 1 2 Utility 14 | 5 . 4 5 Device 6 | 4 . . 2 Storage 4 | 1 . 1 2 Processor 3 | . . 3 . Hackware 1 | . . . 1 Protection . | . . . . Artifact . | . . . . Weapon 39 | 2 4 17 16 Energy Gun 8 | 2 3 . 3 Energy Cannon 5 | . . 1 4 Ballistic Gun 11 | . . 8 3 Ballistic Cannon . | . . . . Launcher 8 | . 1 5 2 Special Weapon 3 | . . . 3 Impact Weapon . | . . . . Slashing Weapon 2 | . . 1 1 Piercing Weapon . | . . . . Special Melee Weapon 2 | . . 2 . Unidentified Prototypes 3 | . . 2 1 Parts Lost 19 | . . 5 14 Power 2 | . . . 2 Propulsion 4 | . . 2 2 Utility 3 | . . . 3 Weapon 10 | . . 3 7 Highest Loss Streak 4 | . . 3 4 To Critical Strikes . | . . . . Average Slot Usage (%) 76 | . 91 88 69 Engine 6 | . 14 11 3 Core 2 | . . . 4 Leg 3 | . . 2 5 Wheel 4 | . 28 4 . Hover 5 | . . 13 2 Flight 1 | . . . 1 Device 5 | . 19 4 3 Storage 3 | . . 4 3 Processor 14 | . . 18 14 Energy Gun 5 | . 27 4 1 Energy Cannon 7 | . . 4 10 Ballistic Gun 7 | . . 7 9 Launcher 3 | . . 2 4 Slashing Weapon 3 | . . 8 1 Naked Turns . | . . . . Heaviest Build 31 | 10 13 19 31 Greatest Support 20 | 20 20 20 16 Greatest Overweight (x) 6 | . . 6 4 Average Overweight (x) . | . . . . Largest Inventory Capacity 8 | 8 5 8 5 Average Capacity 5 | 5 5 6 5 Most Carried 6 | 5 5 6 5 Average Carried 3 | 2 4 3 3 Final Capacity 5 | 5 5 5 5 Final Carried 5 | 4 5 4 2 Class Distribution -------------------- 52% | Mutant 45% | Gunner Dominant Class ---------------- Mutant | -10/Materials Mutant | -9/Materials Gunner | -8/Materials Resources | -11 -10 -9 -8 ----------- Run | Yrd Mat Mat Mat Matter Collected 1488 | 296 24 337 831 Remotely 40 | 40 . . . Salvage Created 1565 | 136 124 490 815 Parts 119 | 14 14 40 51 Haulers Intercepted . | . . . . Recyclers Shooed 4 | . 3 1 . Parts Field Recycled . | . . . . Retrieved Matter . | . . . . Parts Self-Destructed . | . . . . Prevented . | . . . . Kills | -11 -10 -9 -8 ------- Run | Yrd Mat Mat Mat Combat Hostiles Destroyed 28 | . 2 11 15 Melee 3 | . . . 3 Guns 14 | . 1 5 8 Cannons 4 | . . 2 2 AOE 7 | . 1 4 2 Classes Destroyed 11 | 2 5 2 2 Worker 7 | . 1 1 5 Builder 4 | . 1 1 2 Tunneler 5 | 4 . . 1 Recycler 2 | 1 . 1 . Operator 2 | . 1 1 . Watcher 5 | . 1 1 3 Swarmer 3 | . . . 3 Grunt 15 | . 2 6 7 Duelist 1 | . . 1 . Sentry 8 | . . 4 4 Hunter 1 | . . . 1 Best Kill Streak 8 | 5 4 8 5 Combat Bots Only 6 | . 2 6 3 Max Kills in Single Turn 4 | 4 2 3 3 Gunslinging . | . . . . Exploded 1 | . 1 1 1 Melee 1 | . . . 1 Uniques/NPCs Destroyed . | . . . . Combat | -11 -10 -9 -8 -------- Run | Yrd Mat Mat Mat Hostile Shots Fired 198 | . 7 45 146 Missed 70 | . 3 8 59 Damage Taken 2063 | . 66 626 1371 Core 725 | . 32 139 554 Absorbed by Shields . | . . . . Regen/Repaired (Parts) 2 | . 2 . . Core Remaining (%) 84 | 100 87 65 . Volleys Fired 129 | 6 12 36 75 Largest 4 | 2 2 3 4 Hottest 240 | 80 130 160 240 Shots Fired 245 | 12 21 64 148 Gun 149 | 12 18 37 82 Cannon 60 | . . 9 51 Launcher 33 | . 3 18 12 Special 3 | . . . 3 Kinetic 94 | . . 21 73 Thermal 112 | 6 18 25 63 Explosive 33 | . 3 18 12 Electromagnetic 6 | 6 . . . Robot Hit Streak 18 | 4 6 7 18 Robot Miss Streak 4 | 3 4 4 4 Penetration Max . | . . . . Secondary Targets 2 | . . . 2 Max Gunslinging Chain 1 | . . . 1 Shots Hit Robots 169 | 6 13 43 107 Core Hits 94 | 6 11 26 51 Critical Kills 2 | . . 1 1 Critical Parts Destroyed 2 | . . . 2 Critical Strikes 9 | . . 2 7 Burn 3 | . . 1 2 Destroy 5 | . . 1 4 Sever 1 | . . . 1 Melee Attacks 28 | . . 4 24 Impact . | . . . . Slashing 26 | . . 2 24 Piercing . | . . . . Sneak Attacks 2 | . . 2 . Combat Hostiles . | . . . . Follow-up Attacks . | . . . . Damage Inflicted 3877 | 213 387 1005 2272 Guns 1431 | 63 216 290 862 Cannons 664 | . . 104 560 Explosions 1210 | 150 171 503 386 Melee 555 | . . 108 447 Ramming 10 | . . . 10 Kinetic 835 | . . 112 723 Thermal 1378 | 174 216 282 706 Explosive 1060 | . 171 503 386 Electromagnetic 39 | 39 . . . Impact . | . . . . Slashing 555 | . . 108 447 Piercing . | . . . . Highest Corruption 7 | . . 4 7 Average Corruption 6 | . . 4 6 Corruption Purged . | . . . . Corruption Blocked . | . . . . Effects 31 | . . 6 25 Message Errors 9 | . . 1 8 Matter Fused 8 | . . 1 7 Heat Flow Errors 3 | . . 1 2 Energy Discharges 3 | . . . 3 Parts Rejected 1 | . . . 1 Data Loss (minor) 2 | . . 1 1 Data Loss (major) 2 | . . 1 1 Weapon Failures 3 | . . 1 2 Overload Shots . | . . . . Overflow Damage 39 | . . 28 11 Projectiles . | . . . . Explosions 7 | . . . 7 Melee 32 | . . 28 4 Knockbacks . | . . . . Impact . | . . . . Kinetic . | . . . . Secondary . | . . . . Self-Inflicted Damage 54 | . . 38 16 Shots 2 | . . 1 1 Rammed 3 | . . . 3 Targets Rammed 5 | . . . 5 Kicked 2 | . . . 2 Crushed . | . . . . Highest Temperature 538 | 70 343 538 477 Average Temperature 116 | 31 133 144 106 Received Heat Transfer 876 | . 36 219 621 Effects 14 | . . 8 6 Shutdowns 2 | . . 1 1 Energy Bleed 2 | . . 1 1 Interference 2 | . . . 2 Matter Decay 2 | . . 2 . Short Circuit 2 | . . 1 1 Damage (minor) 1 | . . . 1 Damage (major) 3 | . . 3 . Siege Activations . | . . . . Robots Corrupted . | . . . . Combat Hostiles . | . . . . Parts Fried . | . . . . Impact Corruptions . | . . . . Robots Melted . | . . . . Combat Hostiles . | . . . . Parts Melted 3 | . 1 . 2 Heat Transferred 2965 | 150 518 703 1594 Parts Sabotaged . | . . . . Parts Stolen . | . . . . Parts Stripped . | . . . . Power Chain Reactions 2 | 2 . . . Alert | -11 -10 -9 -8 ------- Run | Yrd Mat Mat Mat Peak Influence 530 | 25 148 530 327 Initial 141 | . 16 62 141 Average 206 | 9 84 305 200 Maximum Alert Level 2 | . . 2 1 Low Security (%) 50 | 100 100 13 54 Level 1 44 | . . 66 45 Level 2 4 | . . 19 . Level 3 . | . . . . Level 4 . | . . . . Level 5 . | . . . . High Security . | . . . . Max Security . | . . . . Squads Dispatched 5 | . . 3 2 Investigation 1 | . . 1 . Extermination . | . . . . Reinforcement 4 | . . 2 2 Assault . | . . . . Garrison . | . . . . Intercept . | . . . . Searches Triggered . | . . . . Construction Impeded 1 | . . . 1 Haulers Reinforced . | . . . . Active Scanning Responses . | . . . . Cargo Convoy Interrupts . | . . . . Stealth | -11 -10 -9 -8 --------- Run | Yrd Mat Mat Mat Distress Signals 1 | . . . 1 Communications Jammed . | . . . . Distress Signals . | . . . . Times Spotted 42 | . 4 13 25 Peak Tracking Total 6 | . 2 6 4 Tactical Retreats 1 | . . . 1 Traps | -11 -10 -9 -8 ------- Run | Yrd Mat Mat Mat Traps Triggered 1 | . . . 1 Indirectly . | . . . . Trap Hack Attempts . | . . . . Triggered . | . . . . Disarmed . | . . . . Reprogrammed . | . . . . Reused . | . . . . Traps Extracted . | . . . . Installed . | . . . . Triggered . | . . . . Machines | -11 -10 -9 -8 ---------- Run | Yrd Mat Mat Mat Machines Disabled 4 | . 1 2 1 Max in Single Turn 2 | . 1 2 1 Machines Repaired . | . . . . Machines Dismantled . | . . . . Machines Sabotaged . | . . . . Overloaded Fab Kills . | . . . . Hacking | -11 -10 -9 -8 --------- Run | Yrd Mat Mat Mat Machines Accessed 7 | . 2 3 2 Terminals 4 | . 1 2 1 Fabricators . | . . . . Repair Stations 1 | . 1 . . Recycling Units 1 | . . 1 . Scanalyzers 1 | . . . 1 Garrison Access . | . . . . Total Hacks 20 | . 5 8 7 Successful 11 | . 2 3 6 Failed 9 | . 3 5 1 Catastrophic . | . . . . Database Lockouts . | . . . . Manual 3 | . . 3 . Terminals 11 | . 2 6 3 Fabricators . | . . . . Repair Stations 3 | . 3 . . Recycling Units 2 | . . 2 . Scanalyzers 4 | . . . 4 Garrison Access . | . . . . Terminal Hacks 4 | . . 2 2 Record 2 | . . 2 . Emergency Access Points 1 | . . . 1 Locate Traps 1 | . . . 1 Fabricator Hacks . | . . . . Repair Station Hacks 2 | . 2 . . Scan Component 1 | . 1 . . Repair 1 | . 1 . . Recycling Unit Hacks 1 | . . 1 . Report Inventory 1 | . . 1 . Scanalyzer 4 | . . . 4 Insert Component 2 | . . . 2 Analyze 2 | . . . 2 Garrison Access Hacks . | . . . . Unauthorized Hacks . | . . . . Terminals . | . . . . Fabricators . | . . . . Repair Stations . | . . . . Recycling Units . | . . . . Scanalyzers . | . . . . Garrison Access . | . . . . Data Cores Recovered 1 | . . 1 . Used . | . . . . Hacking Detections 6 | . 2 3 1 Full Trace Events . | . . . . Feedback Events . | . . . . Feedback Blocked . | . . . . Robot Schematics Acquired . | . . . . Robots Built . | . . . . Authchips . | . . . . Time . | . . . . Total Robot Build Rating . | . . . . Part Schematics Acquired 2 | . . . 2 Parts Built . | . . . . Authchips . | . . . . Time . | . . . . Total Part Build Rating . | . . . . Parts Repaired 1 | . 1 . . Time 38 | . 38 . . Parts Recycled . | . . . . Recycled Matter . | . . . . Retrieved Matter . | . . . . Retrieved Components . | . . . . Parts Scanalyzed 2 | . . . 2 Part Schematics Acquired 2 | . . . 2 Parts Damaged . | . . . . Bothacking | -11 -10 -9 -8 ------------ Run | Yrd Mat Mat Mat Used RIF Installer . | . . . . Robots Hacked 1 | . . 1 . Non-combat . | . . . . Combat 1 | . . 1 . Robot Hacks Applied 1 | . . 1 . parse_system 1 | . . 1 . Relay Couplers Released . | . . . . Fabnet Peak Effective % . | . . . . Robots Rewired . | . . . . Allies Hacked . | . . . . Hacks Repelled . | . . . . Allies | -11 -10 -9 -8 -------- Run | Yrd Mat Mat Mat Total Allies . | . . . . Largest Group . | . . . . Highest-Rated Group . | . . . . Highest-Rated Ally . | . . . . Total Orders . | . . . . Ally Attacks . | . . . . Total Damage . | . . . . Kills . | . . . . Allies Corrupted . | . . . . Allies Melted . | . . . . Intel | -11 -10 -9 -8 ------- Run | Yrd Mat Mat Mat Robot Analysis Total . | . . . . Derelict Logs Recovered . | . . . . Drone Launches . | . . . . Drone Recoveries . | . . . . Exploration | -11 -10 -9 -8 ------------- Run | Yrd Mat Mat Mat Turns Passed 1669 | 78 166 422 1003 Spaces Moved 1019 | 48 150 350 471 Core 22 | 3 . 3 16 Treads . | . . . . Legs 266 | . . 32 234 Wheels 248 | 45 150 53 . Hover 409 | . . 262 147 Flight 74 | . . . 74 Fastest Speed 35 | 50 80 56 35 Average Speed 105 | 78 80 68 143 Slowest Speed 350 | 80 80 350 260 Overloaded Moves . | . . . . Propulsion Burnouts . | . . . . Robots Hopped . | . . . . Cave-ins Triggered . | . . . . Exploration Rate (%) 25 | 4 24 34 40 Regions Visited 3 Branch Regions . Pre-discovered Areas . | . . . . Known Exits Taken . | . . . . Unknown Exits Taken 3 | 1 1 1 . Scrap Searched . | . . . . Spaces Dug 6 | . . 6 . Terrain Destroyed 212 | 2 11 100 99 Melee . | . . . . Projectile 27 | . . . 27 AOE 185 | 2 11 100 72 Terrain Rammed . | . . . . Walls Destroyed . | . . . . Machines Disabled . | . . . . Actions | -11 -10 -9 -8 --------- Run | Yrd Mat Mat Mat Total 1372 | 74 175 469 654 Wait 23 | . 1 10 12 Move 1016 | 47 149 349 471 Hop . | . . . . Pick Up 59 | 11 5 23 20 Fast Attach . | . . . . Attach 39 | 7 . 10 22 Detach 11 | . . 2 9 Swap 33 | 3 4 19 7 Drop 29 | . 4 16 9 Fire 129 | 6 12 36 75 Melee 28 | . . 4 24 Ram 3 | . . . 3 Kick 2 | . . . 2 Crush . | . . . . Escape Stasis . | . . . . Rewire . | . . . . Trap . | . . . . Miscellaneous . | . . . . Route ------- -11/Scrapyard -10/Materials -9/Materials -8/Materials (discovered 1 exit: [*Sto]) History --------- Turn | Location | Event 28 | -11/Scrapyard | Discovered new exit (range 14) 79 | -11/Scrapyard | Entered Materials 187 | -10/Materials | Repaired Imp. Terrain Scanner? 193 | -10/Materials | Discovered new exit (range 9) 245 | -10/Materials | Entered another Materials area 245 | -9/Materials | Evolved 2 slots: Utility x1, Weapon x1 339 | -9/Materials | Lost 3 parts (1n2w) 345 | -9/Materials | Build established: Mutant 628 | -9/Materials | Discovered new exit (range 15) 667 | -9/Materials | Entered another Materials area 667 | -8/Materials | Evolved 2 slots: Propulsion x1, Weapon x1 674 | -8/Materials | Discovered new exit (range 14) 919 | -8/Materials | Lost 3 parts (1n1u1w) 1047 | -8/Materials | Core integrity fell below 50% 1074 | -8/Materials | Core integrity fell below 20% 1118 | -8/Materials | Lost 4 parts (1p3w) 1400 | -8/Materials | Build established: Gunner 1670 | -8/Materials | Destroyed by G-47 Trooper with Particle Gun Last Messages --------------- 01633_ Acquired 106 matter. 01634_ K-01 Serf collects debris. 01634_ Acquired 49 matter. 01635_ Acquired 40 matter. 01638_ K-01 Serf collects debris. 01647_ Connecting with Terminal... >>Traps(Locate) Found 12 traps in 2 arrays: 6x Alarm Trap 6x Shock Trap Map updated. >>Access(Emergency) Found 2 emergency access doors: (40,33) (31,32) Map updated. 01658_ ALERT: Hostiles spotted, dispatching reinforcements to Terminal M003. 01662_ System corrupted: Energy discharge (-26). 01667_ Welding Torch destroyed. Map ----- +----------------------------------------------------+ | | | | | | | | | | | | | | | | | | | | | | | | | | | | | | | | | | | ?????????????????????????????????????????????????? | | ??????????????????????########???????????????????? | | ??????????????????????#[[==!!#???????????????????? | | ??????????????????????#[[==!!#???????????????????? | | ????????????##????????# #???????????????????? | | ????????????# ###### #########???????????? | | ???????????? +???????????? | | ???????????????? w g #???????????? | | ???????????????????????# @ g +???????????? | | ??????????????????????#;;###;;#+#### #???????????? | | ???????????????????? ? ## #?# #???????????? | | ????????????????? ! ?# T #?# #??????????^? | | ????????????????# ?# ### ###???????? ^ | | ????????????????+ """ """ ?#! " % ####### " | | ????????????????# """""""""??# # | | ????????????????# """"" " ??# # | | ??????????????????? ? ??# # % | | ????????????????????#???##/??##### = ####### | | ?????????????????????????#???????## ##????????## | | ??????????????????????????????????# #??????????? | | ??????????????????????????????????# ]#?????###### | | ????????????????????????^?????????# ####### | | ???????????????????????^??????????# | | ????????????????????????^?????????# | | ???????????????????????^^?????????# | | ????????????????????????^?????????# ####### | | ??????????????????????????????????# #?????## # | | ??????????????????????????????????# #??????# # | | ??????????????????????????????????# +??????# # | | ??????????????????????????????????# #??????# # | | ??????????????????????????????????+ +??????# # | | ??????????????????????????????????# ???????# # | | ???????????????????????????????+??## #???????# # | +----------------------------------------------------+ Best States ------------- Heat Dissipation 41 Energy Generation 14 Energy Capacity 360 Matter Stores 300 Matter Capacity 300 Sight Range 16 Terrain Scan Range 16 Terrain Scan Density 10 Evasion (%) 61 Targeting Accuracy 16 Target Analysis 5 Defensive Hacking 10 Item Schematics ----------------- Sml. Storage Unit | -8/Materials | Scanalyzed Welding Torch | -8/Materials | Scanalyzed Robot Schematics ------------------ None Fabricated ------------ Nothing Alien Tech Used ----------------- None Achievements -------------- Oops Part-time Mechanic Challenges ------------ None Game ------ Seed MetafieldDecoderDerivative Manual? 0 Play Time 00:47:58 Cumulative 3.0 hours Start 2024.07.10 @ 00:10:54 End 2024.07.10 @ 01:05:15 Sessions 1 Manual Loads 0 Difficulty Rogue Special Mode None Game No. 4 Rogue 4 Adventurer 0 Explorer 0 Win Type - Total 0 Types 0/0/0/0/0/0/0/0/0 Lore% 1 Gallery% 5 Achievement% 5 Wizard Run 0 Options --------- Layout 1 ASCII 0 Keyboard 1 Movement Numpad Keybinds 0 Fullscreen 2 Font 20/SmallcapsGlow Map View 64x42 Zoom Use 33% Tactical HUD 1 Map Filters NONE Filters NONE Steam 1 RUN: 0136477c-5377-4e9e-b433-3427d5367412